fUST/lending_fUST_20250211
["ID","MTS","AMOUNT","RATE_DAILY","PERIOD"]
[352717814,1739271054427,-1132.32,0.00011232,2]
[352717815,1739271054437,-655.61,0.00011232,2]
[352717816,1739271054447,-552.97,0.00011232,2]
[352717817,1739271054456,-500.0,0.00011232,2]
[352717818,1739271054466,-737.51,0.00011232,2]
[352717819,1739271054475,-3767.25,0.00011232,2]
[352717820,1739271054484,-500.0,0.00011232,2]
[352717821,1739271054494,-500.0,0.00011232,2]
[352717822,1739271054503,-500.0,0.00011232,2]
[352717823,1739271054512,-500.0,0.00011232,2]
[352717824,1739271054521,-500.0,0.00011232,2]
[352717825,1739271054530,-545.01,0.00011232,2]
[352717826,1739271054539,-3470.9,0.00011232,2]
[352717827,1739271054548,-500.0,0.00011232,2]
[352717828,1739271054557,-1061.59,0.00011232,2]
[352717829,1739271054566,-7193.18,0.00011232,2]
[352717830,1739271054576,-500.0,0.00011232,2]
[352717831,1739271054585,-500.0,0.00011232,2]
[352717832,1739271054594,-500.0,0.00011232,2]
[352717833,1739271054607,-500.0,0.00011232,2]
[352717834,1739271054616,-500.0,0.00011232,2]
[352717835,1739271054625,-500.0,0.00011232,2]
[352717836,1739271054635,-1169.2,0.00011232,2]
[352717837,1739271054645,-500.0,0.00011232,2]
[352717838,1739271054655,-500.0,0.00011232,2]
[352717839,1739271054664,-6929.21,0.00011232,2]
[352717840,1739271054673,-500.0,0.00011232,2]
[352717841,1739271054685,-500.0,0.00011232,2]
[352717842,1739271054694,-15739.03,0.00011232,2]
[352717843,1739271054704,-500.0,0.00011232,2]
[352717844,1739271054713,-683.86,0.00011232,2]
[352717845,1739271054722,-500.0,0.00011232,2]
[352717846,1739271054731,-500.0,0.00011232,2]
[352717847,1739271054838,-500.0,0.00011232,2]
[352717848,1739271054848,-505.07,0.00011232,2]
[352717849,1739271054857,-503.76658949,0.00011232,2]
[352717850,1739271054866,-500.0,0.00011232,2]
[352717851,1739271054876,-500.0,0.00011232,2]
[352717852,1739271054885,-500.0,0.00011232,2]
[352717853,1739271054894,-500.0,0.00011232,2]
[352717854,1739271054903,-500.0,0.00011232,2]
[352717855,1739271054913,-500.0,0.00011232,2]
[352717856,1739271054923,-608.77,0.00011232,2]
[352717857,1739271054932,-500.0,0.00011232,2]
[352717858,1739271054941,-1396.88,0.00011232,2]
[352717859,1739271054952,-1390.22,0.00011232,2]
[352717860,1739271054961,-542.86,0.00011232,2]
[352717861,1739271054971,-500.0,0.00011232,2]
[352717862,1739271054980,-500.0,0.00011232,2]
[352717863,1739271054989,-500.0,0.00011232,2]
[352717864,1739271054999,-3790.69,0.00011232,2]
[352717865,1739271055008,-500.0,0.00011232,2]
[352717866,1739271055018,-500.0,0.00011232,2]
[352717867,1739271055027,-500.0,0.00011232,2]
[352717868,1739271055036,-500.0,0.00011232,2]
[352717869,1739271055045,-500.0,0.00011232,2]
[352717870,1739271055055,-500.0,0.00011232,2]
[352717871,1739271055064,-1423.58,0.00011232,2]
[352717872,1739271055073,-500.0,0.00011232,2]
[352717873,1739271055083,-1333.5,0.00011232,2]
[352717874,1739271055092,-500.0,0.00011232,2]
[352717875,1739271055103,-4935.57,0.00011232,2]
[352717876,1739271055112,-500.0,0.00011232,2]
[352717877,1739271055122,-645.74755405,0.00011232,2]
[352717878,1739271055132,-500.0,0.00011232,2]
[352717879,1739271055141,-500.0,0.00011232,2]
[352717880,1739271055150,-2542.83,0.00011232,2]
[352717881,1739271055159,-503.34028238,0.00011232,2]
[352717882,1739271055168,-49962.25,0.00011232,2]
[352717883,1739271055177,-1198.72,0.00011232,2]
[352717884,1739271055187,-500.0,0.00011232,2]
[352717885,1739271055196,-901.18,0.00011232,2]
[352717886,1739271055205,-1818.92,0.00011232,2]
[352717887,1739271055215,-500.0,0.00011232,2]
[352717888,1739271055224,-503.40403214,0.00011232,2]
[352717889,1739271055233,-500.0,0.00011232,2]
[352717890,1739271055242,-500.0,0.00011232,2]
[352717891,1739271055252,-268.16360515,0.00011232,2]
[352717892,1739271055261,-500.0,0.00011232,2]
[352717893,1739271055270,-586.59,0.00011232,2]
[352717894,1739271055280,-500.0,0.00011232,2]
[352717895,1739271055290,-500.0,0.00011232,2]
[352717896,1739271055299,-500.0,0.00011232,2]
[352717897,1739271055308,-500.0,0.00011232,2]
[352717898,1739271055318,-500.0,0.00011232,2]
[352717899,1739271055327,-500.0,0.00011232,2]
[352717900,1739271055336,-2556.24,0.00011232,2]
[352717901,1739271055345,-500.0,0.00011232,2]
[352717902,1739271055354,-924.14,0.00011232,2]
[352717903,1739271055363,-500.0,0.00011232,2]
[352717904,1739271055372,-500.0,0.00011232,2]
[352717905,1739271055381,-500.0,0.00011232,2]
[352717906,1739271055390,-500.0,0.00011232,2]
[352717907,1739271055399,-500.0,0.00011232,2]
[352717908,1739271055408,-500.0,0.00011232,2]
[352717909,1739271055418,-1567.27,0.00011232,2]
[352717910,1739271055427,-500.0,0.00011232,2]
[352717911,1739271055437,-1738.02,0.00011232,2]
[352717912,1739271055446,-500.0,0.00011232,2]
[352717913,1739271055455,-4187.05,0.00011232,2]
[352717914,1739271055464,-954.02,0.00011232,2]
[352717915,1739271055474,-500.0,0.00011232,2]
[352717916,1739271055483,-21874.65,0.00011232,2]
[352717917,1739271055492,-500.0,0.00011232,2]
[352717918,1739271055501,-500.0,0.00011232,2]
[352717919,1739271055510,-1162.92,0.00011232,2]
[352717920,1739271055519,-3089.15,0.00011232,2]
[352717921,1739271055529,-2342.54,0.00011232,2]
[352717922,1739271055538,-946.04,0.00011232,2]
[352717923,1739271055548,-500.0,0.00011232,2]
[352717924,1739271055557,-500.0,0.00011232,2]
[352717925,1739271055567,-733.18,0.00011232,2]
[352717926,1739271055576,-954.7,0.00011232,2]
[352717927,1739271055585,-7338.77,0.00011232,2]
[352717928,1739271055595,-2070.97,0.00011232,2]
[352717929,1739271055606,-500.0,0.00011232,2]
[352717930,1739271055616,-1761.27,0.00011232,2]
[352717931,1739271055625,-500.0,0.00011232,2]
[352717932,1739271055635,-500.0,0.00011232,2]
[352717933,1739271055644,-500.0,0.00011232,2]
[352717934,1739271055654,-500.0,0.00011232,2]
[352717935,1739271055663,-500.0,0.00011232,2]
[352717936,1739271055672,-500.0,0.00011232,2]
[352717937,1739271055682,-594.95,0.00011232,2]
[352717938,1739271055691,-500.0,0.00011232,2]
[352717939,1739271055702,-1110.33,0.00011232,2]
[352717940,1739271055711,-500.0,0.00011232,2]
[352717941,1739271055721,-500.0,0.00011232,2]
[352717942,1739271055730,-1936.04,0.00011232,2]
[352717943,1739271055739,-820.02,0.00011232,2]
[352717944,1739271055748,-671.12,0.00011232,2]
[352717945,1739271055757,-500.0,0.00011232,2]
[352717946,1739271055767,-501.37495137,0.00011232,2]
[352717947,1739271055776,-500.0,0.00011232,2]
[352717948,1739271055785,-500.0,0.00011232,2]
[352717949,1739271055794,-500.0,0.00011232,2]
[352717950,1739271055804,-500.0,0.00011232,2]
[352717951,1739271055813,-500.0,0.00011232,2]
[352717952,1739271055823,-500.0,0.00011232,2]
[352717953,1739271055832,-500.0,0.00011232,2]
[352717954,1739271055841,-500.0,0.00011232,2]
[352717955,1739271055850,-500.0,0.00011232,2]
[352717956,1739271055859,-1144.74,0.00011232,2]
[352717957,1739271055869,-500.0,0.00011232,2]
[352717958,1739271055878,-849.0,0.00011238,2]
[352717959,1739271055887,-168.2461105,0.0001126,2]
[352717960,1739271055907,-13268.2024785,0.00011289,2]
[352717961,1739271055919,-168.2461105,0.00011315,2]
[352717962,1739271055929,-761.503,0.00011345,2]
[352717963,1739271055939,-159.1884568,0.00011368,2]
[352717964,1739271055949,-821.36,0.00011369,2]
[352717965,1739271055959,-500.0,0.00011369,2]
[352717966,1739271055968,-500.0,0.00011369,2]
[352717967,1739271055978,-530.18,0.00011369,2]
[352717968,1739271055988,-500.0,0.00011369,2]
[352717969,1739271055997,-496.13811185,0.00011369,2]
[352717970,1739271056007,-500.0,0.00011369,2]
[352717971,1739271056017,-500.0,0.00011369,2]
[352717972,1739271056027,-500.0,0.00011369,2]
[352717973,1739271056036,-500.0,0.00011369,2]
[352717974,1739271056045,-500.0,0.00011369,2]
[352717975,1739271056055,-500.0,0.00011369,2]
[352717976,1739271056065,-500.0,0.00011369,2]
[352717977,1739271056074,-500.0,0.00011369,2]
[352717978,1739271056084,-500.0,0.00011369,2]
[352717979,1739271056093,-500.0,0.00011369,2]
[352717980,1739271056103,-500.0,0.00011369,2]
[352717981,1739271056112,-500.0,0.00011369,2]
[352717982,1739271056122,-500.0,0.00011369,2]
[352717983,1739271056131,-401.03714867,0.00011369,2]
[352717984,1739271056149,-98.96285133,0.00011369,2]
[352717985,1739271056159,-500.0,0.00011369,2]
[352717986,1739271056169,-500.0,0.00011369,2]
[352717987,1739271056178,-502.45,0.00011369,2]
[352717988,1739271056188,-500.0,0.00011369,2]
[352717989,1739271056198,-500.0,0.00011369,2]
[352717990,1739271056207,-500.0,0.00011369,2]
[352717991,1739271056217,-500.0,0.00011369,2]
[352717992,1739271056226,-500.0,0.00011369,2]
[352717993,1739271056236,-500.0,0.00011369,2]
[352717994,1739271056245,-500.0,0.00011369,2]
[352717995,1739271056254,-500.0,0.00011369,2]
[352717996,1739271056264,-500.0,0.00011369,2]
[352717997,1739271056273,-500.0,0.00011369,2]
[352717998,1739271056284,-500.0,0.00011369,2]
[352717999,1739271056294,-500.0,0.00011369,2]
[352718000,1739271056303,-500.0,0.00011369,2]
[352718001,1739271056313,-500.0,0.00011369,2]
[352718002,1739271056322,-500.0,0.00011369,2]
[352718003,1739271056332,-500.0,0.00011369,2]
[352718004,1739271056341,-500.0,0.00011369,2]
[352718005,1739271056351,-500.0,0.00011369,2]
[352718006,1739271056361,-500.0,0.00011369,2]
[352718007,1739271056370,-500.0,0.00011369,2]
[352718008,1739271056380,-500.0,0.00011369,2]
[352718009,1739271056390,-529.8051605,0.00011369,2]
[352718010,1739271056399,-500.0,0.00011369,2]
[352718011,1739271056408,-500.0,0.00011369,2]
[352718012,1739271056418,-1176.85,0.00011369,2]
[352718013,1739271056551,-500.0,0.00011369,2]
[352718014,1739271056560,-500.0,0.00011369,2]
[352718015,1739271056569,-500.0,0.00011369,2]
[352718016,1739271056579,-500.0,0.00011369,2]
[352718017,1739271056588,-500.0,0.00011369,2]
[352718018,1739271056597,-644.79,0.00011369,2]
[352718019,1739271056608,-500.0,0.00011369,2]
[352718020,1739271056617,-500.0,0.00011369,2]
[352718021,1739271056626,-500.0,0.00011369,2]
[352718022,1739271056635,-500.0,0.00011369,2]
[352718023,1739271056644,-500.0,0.00011369,2]
[352718024,1739271056654,-500.0,0.00011369,2]
[352718025,1739271056663,-500.0,0.00011369,2]
[352718026,1739271056673,-587.05,0.00011369,2]
[352718027,1739271056684,-568.50402722,0.00011369,2]
[352718028,1739271056693,-500.0,0.00011369,2]
[352718029,1739271056703,-500.0,0.00011369,2]
[352718030,1739271056712,-500.0,0.00011369,2]
[352718031,1739271056720,-500.0,0.00011369,2]
[352718032,1739271056730,-519.22,0.00011369,2]
[352718033,1739271056739,-500.0,0.00011369,2]
[352718034,1739271056748,-500.0,0.00011369,2]
[352718035,1739271056757,-500.0,0.00011369,2]
[352718036,1739271056766,-500.0,0.00011369,2]
[352718037,1739271056776,-500.0,0.00011369,2]
[352718038,1739271056785,-500.0,0.00011369,2]
[352718039,1739271056794,-198.30384766,0.00011369,2]
[352718040,1739271056803,-504.75211308,0.00011369,2]
[352718041,1739271056812,-500.0,0.00011369,2]
[352718042,1739271056821,-526.81898224,0.00011369,2]
[352718043,1739271056831,-501.53425113,0.00011369,2]
[352718044,1739271056840,-500.0,0.00011369,2]
[352718045,1739271056849,-500.0,0.00011369,2]
[352718046,1739271056858,-880.23,0.00011369,2]
[352718047,1739271056868,-500.0,0.00011369,2]
[352718048,1739271056877,-884.03,0.00011369,2]
[352718049,1739271056886,-500.0,0.00011369,2]
[352718050,1739271056895,-500.0,0.00011369,2]
[352718051,1739271056904,-500.0,0.00011369,2]
[352718052,1739271056913,-840.65,0.00011369,2]
[352718053,1739271056922,-500.0,0.00011369,2]
[352718054,1739271056931,-836.03,0.00011369,2]
[352718055,1739271056941,-500.0,0.00011369,2]
[352718056,1739271056951,-500.0,0.00011369,2]
[352718057,1739271056961,-500.0,0.00011369,2]
[352718058,1739271056970,-196.53116581,0.00011369,2]
[352718059,1739271056980,-500.0,0.00011369,2]
[352718060,1739271056990,-937.63,0.00011369,2]
[352718061,1739271056999,-500.0,0.00011369,2]
[352718062,1739271057008,-500.0,0.00011369,2]
[352718063,1739271057018,-500.0,0.00011369,2]
[352718064,1739271057028,-521.34,0.00011369,2]
[352718065,1739271057037,-500.0,0.00011369,2]
[352718066,1739271057046,-511.72,0.00011369,2]
[352718067,1739271057055,-500.0,0.00011369,2]
[352718068,1739271057065,-500.0,0.00011369,2]
[352718069,1739271057074,-669.15,0.00011369,2]
[352718070,1739271057084,-500.0,0.00011369,2]
[352718071,1739271057093,-777.03,0.00011369,2]
[352718072,1739271057102,-500.0,0.00011369,2]
[352718073,1739271057111,-1164.87,0.00011369,2]
[352718074,1739271057120,-461.43630472,0.00011369,2]
[352718075,1739271057130,-500.0,0.00011369,2]
[352718076,1739271057139,-500.0,0.00011369,2]
[352718077,1739271057148,-500.0,0.00011369,2]
[352718078,1739271057159,-500.0,0.00011369,2]
[352718079,1739271057169,-500.0,0.00011369,2]
[352718080,1739271057180,-193.70752793,0.00011369,2]
[352718081,1739271057189,-780.9,0.00011369,2]
[352718082,1739271057201,-1549.36,0.00011369,2]
[352718083,1739271057211,-500.0,0.00011369,2]
[352718084,1739271057220,-1162.4,0.00011369,2]
[352718085,1739271057229,-500.0,0.00011369,2]
[352718086,1739271057239,-150.29466679,0.00011369,2]
[352718087,1739271057248,-500.0,0.00011369,2]
[352718088,1739271057258,-500.0,0.00011369,2]
[352718089,1739271057267,-500.0,0.00011369,2]
[352718090,1739271057277,-500.0,0.00011369,2]
[352718091,1739271057286,-500.0,0.00011369,2]
[352718092,1739271057295,-500.0,0.00011369,2]
[352718093,1739271057305,-500.0,0.00011369,2]
[352718094,1739271057315,-500.0,0.00011369,2]
[352718095,1739271057324,-500.0,0.00011369,2]
[352718096,1739271057333,-573.64,0.00011369,2]
[352718097,1739271057342,-500.0,0.00011369,2]
[352718098,1739271057351,-500.0,0.00011369,2]
[352718099,1739271057361,-577.23,0.00011369,2]
[352718100,1739271057370,-500.0,0.00011369,2]
[352718101,1739271057379,-832.66,0.00011369,2]
[352718102,1739271057387,-500.0,0.00011369,2]
[352718103,1739271057397,-500.0,0.00011369,2]
[352718104,1739271057407,-500.0,0.00011369,2]
[352718105,1739271057416,-500.0,0.00011369,2]
[352718106,1739271057425,-500.0,0.00011369,2]
[352718107,1739271057434,-500.0,0.00011369,2]
[352718108,1739271057444,-1026.39,0.00011369,2]
[352718109,1739271057454,-1889.25,0.00011369,2]
[352718110,1739271057463,-500.0,0.00011369,2]
[352718111,1739271057472,-500.0,0.00011369,2]
[352718112,1739271057481,-1918.89,0.00011369,2]
[352718113,1739271057490,-500.0,0.00011369,2]
[352718114,1739271057499,-500.0,0.00011369,2]
[352718115,1739271057508,-500.0,0.00011369,2]
[352718116,1739271057517,-500.0,0.00011369,2]
[352718117,1739271057527,-500.0,0.00011369,2]
[352718118,1739271057537,-500.0,0.00011369,2]
[352718119,1739271057546,-500.0,0.00011369,2]
[352718120,1739271057556,-503.6451294,0.00011369,2]
[352718121,1739271057565,-632.41,0.00011369,2]
[352718122,1739271057575,-524.7,0.00011369,2]
[352718123,1739271057584,-500.0,0.00011369,2]
[352718124,1739271057593,-500.0,0.00011369,2]
[352718125,1739271057604,-1324.55113208,0.00011369,2]
[352718126,1739271057621,-203.38886792,0.00011369,2]
[352718127,1739271057630,-500.0,0.00011369,2]
[352718128,1739271057639,-600.52,0.00011369,2]
[352718129,1739271057650,-500.0,0.00011369,2]
[352718130,1739271057660,-500.0,0.00011369,2]
[352718131,1739271057670,-500.0,0.00011369,2]
[352718132,1739271057681,-500.0,0.00011369,2]
[352718133,1739271057690,-500.0,0.00011369,2]
[352718134,1739271057700,-252.52863085,0.00011369,2]
[352718135,1739271057709,-866.60498003,0.00011369,2]
[352718136,1739271057772,-500.0,0.00010955,2]
[352718137,1739271057782,-500.0,0.00010955,2]
[352718138,1739271057791,-500.0,0.00010955,2]
[352718139,1739271057801,-41.75501997,0.00011369,2]
[352718140,1739271057810,-1080.87,0.00011369,2]
[352718141,1739271057819,-1199.97,0.00011369,2]
[352718142,1739271057828,-505.91165124,0.00011369,2]
[352718143,1739271057838,-500.0,0.00011369,2]
[352718144,1739271057847,-1673.93,0.00011369,2]
[352718145,1739271057857,-500.0,0.00011369,2]
[352718146,1739271057866,-500.0,0.00011369,2]
[352718147,1739271057875,-1883.13,0.00011369,2]
[352718148,1739271057885,-500.0,0.00011369,2]
[352718149,1739271057894,-500.0,0.00011369,2]
[352718150,1739271057904,-500.0,0.00011369,2]
[352718151,1739271057914,-500.0,0.00011369,2]
[352718152,1739271057923,-500.0,0.00011369,2]
[352718153,1739271057932,-1101.4,0.00011369,2]
[352718154,1739271057942,-2599.46,0.00011369,2]
[352718155,1739271057952,-862.33,0.00011369,2]
[352718156,1739271057960,-500.0,0.00011369,2]
[352718157,1739271058048,-500.0,0.00011369,2]
[352718158,1739271058066,-500.0,0.00011369,2]
[352718159,1739271058076,-500.0,0.00011369,2]
[352718160,1739271058085,-500.0,0.00011369,2]
[352718161,1739271058095,-904.1,0.00011369,2]
[352718162,1739271058104,-500.0,0.00011369,2]
[352718163,1739271058113,-809.1,0.00011369,2]
[352718164,1739271058123,-500.0,0.00011369,2]
[352718165,1739271058132,-500.0,0.00011369,2]
[352718166,1739271058141,-500.0,0.00011369,2]
[352718167,1739271058151,-500.0,0.00011369,2]
[352718168,1739271058161,-500.0,0.00011369,2]
[352718169,1739271058172,-500.0,0.00011369,2]
[352718170,1739271058181,-500.0,0.00011369,2]
[352718171,1739271058190,-2464.59,0.00011369,2]
[352718172,1739271058200,-729.69,0.00011369,2]
[352718173,1739271058209,-500.0,0.00011369,2]
[352718174,1739271058218,-612.24,0.00011369,2]
[352718175,1739271058228,-1132.32,0.00011369,2]
[352718176,1739271058237,-500.0,0.00011369,2]
[352718177,1739271058246,-655.61,0.00011369,2]
[352718178,1739271058255,-552.97,0.00011369,2]
[352718179,1739271058265,-500.0,0.00011369,2]
[352718180,1739271058274,-737.51,0.00011369,2]
[352718181,1739271058283,-3767.25,0.00011369,2]
[352718182,1739271058293,-500.0,0.00011369,2]
[352718183,1739271058302,-500.0,0.00011369,2]
[352718184,1739271058312,-371.50196253,0.00011369,2]
[352718185,1739271058321,-500.0,0.00011369,2]
[352718186,1739271058330,-500.0,0.00011369,2]
[352718187,1739271058340,-545.01,0.00011369,2]
[352718188,1739271058349,-500.0,0.00011369,2]
[352718189,1739271058359,-3470.9,0.00011369,2]
[352718190,1739271058368,-1061.59,0.00011369,2]
[352718191,1739271058377,-500.0,0.00011369,2]
[352718192,1739271058387,-7193.18,0.00011369,2]
[352718193,1739271058396,-500.0,0.00011369,2]
[352718194,1739271058406,-500.0,0.00011369,2]
[352718195,1739271058415,-500.0,0.00011369,2]
[352718196,1739271058425,-500.0,0.00011369,2]
[352718197,1739271058434,-500.0,0.00011369,2]
[352718198,1739271058444,-1169.2,0.00011369,2]
[352718199,1739271058454,-500.0,0.00011369,2]
[352718200,1739271058464,-500.0,0.00011369,2]
[352718201,1739271058474,-6929.21,0.00011369,2]
[352718202,1739271058484,-500.0,0.00011369,2]
[352718203,1739271058493,-500.0,0.00011369,2]
[352718204,1739271058502,-7621.62323519,0.00011369,2]
[352718205,1739271059856,-500.0,0.00010955,2]
[352718206,1739271059866,-404.00529723,0.00010955,2]
[352718207,1739271059875,-500.0,0.00010955,2]
[352718208,1739271059885,-500.0,0.00010955,2]
[352718209,1739271059894,-500.0,0.00010955,2]
[352718210,1739271059903,-500.0,0.00010955,2]
[352718211,1739271059913,-500.0,0.00010955,2]
[352718212,1739271059922,-500.0,0.00010955,2]
[352718213,1739271059931,-349.44782198,0.00010955,2]
[352718214,1739271059941,-500.0,0.00010955,2]
[352718215,1739271059950,-500.0,0.00010955,2]
[352718216,1739271059959,-500.0,0.00010955,2]
[352718217,1739271059968,-500.0,0.00010955,2]
[352718218,1739271059977,-500.0,0.00010955,2]
[352718219,1739271059988,-500.0,0.00010958,2]
[352718220,1739271059997,-500.0,0.00010958,2]
[352718221,1739271060007,-500.0,0.00010958,2]
[352718222,1739271060017,-491.63244675,0.00010958,2]
[352718223,1739271060026,-150.18,0.00010958,2]
[352718224,1739271060037,-3682.08,0.00011095,2]
[352718225,1739271060047,-417.01495388,0.00011232,2]
[352718226,1739271060060,-3265.06504612,0.00011232,2]
[352718227,1739271060070,-8117.40676481,0.00011369,2]
[352718228,1739271060080,-683.86,0.00011369,2]
[352718229,1739271060090,-500.0,0.00011369,2]
[352718230,1739271060100,-500.0,0.00011369,2]
[352718231,1739271060110,-500.0,0.00011369,2]
[352718232,1739271060120,-500.0,0.00011369,2]
[352718233,1739271060129,-505.07,0.00011369,2]
[352718234,1739271060139,-500.0,0.00011369,2]
[352718235,1739271060148,-500.0,0.00011369,2]
[352718236,1739271060158,-500.0,0.00011369,2]
[352718237,1739271060167,-500.0,0.00011369,2]
[352718238,1739271060176,-500.0,0.00011369,2]
[352718239,1739271060186,-500.0,0.00011369,2]
[352718240,1739271060195,-232.55274652,0.00011369,2]
[352718241,1739271060208,-376.21725348,0.00011369,2]
[352718242,1739271060218,-500.0,0.00011369,2]
[352718243,1739271060227,-881.06506372,0.00011369,2]
[352718244,1739271060239,-515.81493628,0.00011369,2]
[352718245,1739271060249,-634.78749685,0.00011369,2]
[352718246,1739271060264,-755.43250315,0.00011369,2]
[352718247,1739271060274,-542.86,0.00011369,2]
[352718248,1739271060283,-300.83885136,0.00011369,2]
[352718249,1739271060295,-199.16114864,0.00011369,2]
[352718250,1739271060304,-500.0,0.00011369,2]
[352718251,1739271060313,-500.0,0.00011369,2]
[352718252,1739271060323,-3790.69,0.00011369,2]
[352718253,1739271060332,-500.0,0.00011369,2]
[352718254,1739271060342,-500.0,0.00011369,2]
[352718255,1739271060351,-500.0,0.00011369,2]
[352718256,1739271060360,-500.0,0.00011369,2]
[352718257,1739271060370,-500.0,0.00011369,2]
[352718258,1739271060379,-500.0,0.00011369,2]
[352718259,1739271060389,-1423.58,0.00011369,2]
[352718260,1739271060399,-528.06873906,0.00011369,2]
[352718261,1739271060408,-1333.5,0.00011369,2]
[352718262,1739271060418,-500.0,0.00011369,2]
[352718263,1739271060427,-4935.57,0.00011369,2]
[352718264,1739271060435,-500.0,0.00011369,2]
[352718265,1739271060445,-500.0,0.00011369,2]
[352718266,1739271060455,-500.0,0.00011369,2]
[352718267,1739271060465,-2542.83,0.00011369,2]
[352718268,1739271060474,-43463.46097084,0.00011369,2]
[352718269,1739271060491,-1000.0,0.00011369,2]
[352718270,1739271060503,-345.27915602,0.00011369,2]
[352718271,1739271060514,-293.33861973,0.00011369,2]
[352718272,1739271061049,-266.97469546,0.00010957,2]
[352718273,1739271061059,-150.21,0.00010958,2]
[352718274,1739271061068,-95.18962143,0.00010958,2]
[352718275,1739271061080,-404.81037857,0.00010958,2]
[352718276,1739271061089,-968.04240736,0.00010959,2]
[352718277,1739271061102,-249.06759264,0.00010959,2]
[352718278,1739271061111,-413.81545342,0.00011369,2]
[352718279,1739271061226,-285.47142266,0.00010958,2]
[352718280,1739271061237,-214.52857734,0.00010958,2]
[352718281,1739271061247,-1446.90585283,0.00010959,2]
[352718282,1739271061258,-2096.89944917,0.00010959,2]
[352718283,1739271061267,-3543.805302,0.00010959,2]
[352718284,1739271061277,-3543.805302,0.00010959,2]
[352718285,1739271061286,-3543.805302,0.00010959,2]
[352718286,1739271061297,-3543.805302,0.00010959,2]
[352718287,1739271061307,-3543.805302,0.00010959,2]
[352718288,1739271061316,-3543.805302,0.00010959,2]
[352718289,1739271061325,-4446.35579999,0.00011369,2]
[352718290,1739271061334,-1198.72,0.00011369,2]
[352718291,1739271061344,-500.0,0.00011369,2]
[352718292,1739271061353,-901.18,0.00011369,2]
[352718293,1739271061363,-1818.92,0.00011369,2]
[352718294,1739271061372,-500.68537091,0.00011369,2]
[352718295,1739271061395,-500.0,0.00011369,2]
[352718296,1739271061412,-500.0,0.00011369,2]
[352718297,1739271061433,-500.0,0.00011369,2]
[352718298,1739271061453,-586.59,0.00011369,2]
[352718299,1739271061470,-500.0,0.00011369,2]
[352718300,1739271061491,-500.0,0.00011369,2]
[352718301,1739271061511,-500.0,0.00011369,2]
[352718302,1739271061531,-500.0,0.00011369,2]
[352718303,1739271061548,-500.0,0.00011369,2]
[352718304,1739271061566,-500.0,0.00011369,2]
[352718305,1739271061584,-2556.24,0.00011369,2]
[352718306,1739271061598,-500.0,0.00011369,2]
[352718307,1739271061622,-924.14,0.00011369,2]
[352718308,1739271061636,-500.0,0.00011369,2]
[352718309,1739271061652,-500.0,0.00011369,2]
[352718310,1739271061668,-500.0,0.00011369,2]
[352718311,1739271061683,-500.0,0.00011369,2]
[352718312,1739271061699,-500.0,0.00011369,2]
[352718313,1739271061716,-1567.27,0.00011369,2]